Cogmind - Beta 10.2 @@@ ROGUE MODE // 2021.12.19 @ 12:24:46 Player: KeepAwake2 Result: Destroyed self via exploding Compression Vault Performance ------------- Evolutions (2) 1000 Regions Visited (6) 1200 Robots Destroyed (48) 240 Value Destroyed (1711) 1711 Prototype IDs (11) 220 Alien Tech Used (0) 0 Bonus (14) 14 TOTAL SCORE: 4385 Bonus ------- High Alert Combat Kills 79 Follower Combat Kills 581 Friendly Fire -646 Cogmind --------- Core Integrity 0/550 Matter 89/300 Energy 160/160 System Corruption 5% Temperature Cool (0) Movement Walking (150) Ox1 Location -8/Storage Parts ------- > --- POWER (1) -------- Light Nuclear Core > --- PROPULSION (3) --- Aluminum Leg Aluminum Leg > --- UTILITY (5) ------ Large Storage Unit Visual Processing Unit Experimental Sensor Array Improved Signal Interpreter > --- WEAPON (2) ------- Gauss Rifle Mini Grenade Launcher > --- INVENTORY (10) --- Deuterium Engine Medium Storage Unit Compact Matter Pod (150) Improved Trap Extractor Precision Beam Rifle Precision Beam Rifle Enhanced Autogun Mining Laser Maul Peak State ------------ > --- POWER ------------ Improved Ion Engine > --- PROPULSION ------- Aluminum Leg Aluminum Leg Carbon-fiber Leg > --- UTILITY ---------- Medium Storage Unit Visual Processing Unit Experimental Sensor Array Improved Signal Interpreter Drone Bay > --- WEAPON ----------- Precision Beam Rifle Enhanced Autogun > --- INVENTORY -------- Improved Ion Engine Large Storage Unit Compact Matter Pod Light Armor Plating Improved Trap Extractor Advanced Beam Rifle Gauss Rifle Mining Laser [Rating: 33] Favorites ----------- Power Ion Engine Engine Ion Engine Power Core Light Nuclear Core Propulsion Aluminum Leg Leg Aluminum Leg Wheel Wheel Utility Experimental Sensor Array Device Experimental Sensor Array Storage Small Storage Unit Processor Visual Processing Unit Hackware Hacking Suite Protection Light Armor Plating Weapon Gauss Rifle Energy Gun Precision Beam Rifle Energy Cannon Heavy Particle Cannon Ballistic Gun Gauss Rifle Ballistic Cannon Assault Cannon Launcher Missile Launcher Special Weapon Mining Laser Impact Weapon Maul Build | -11 -10 -10 -10 -9 -8 -8 ------- Run | Scr Mat Min Exi Min Mat Sto Slots Evolved 4 | . . . . . 4 . Power . | . . . . . . . Propulsion 1 | . . . . . 1 . Utility 3 | . . . . . 3 . Weapon . | . . . . . . . Parts Attached 88 | 6 . 7 . 12 27 36 Power 11 | 1 . . . 1 5 4 Engine 7 | 1 . . . 1 2 3 Core 4 | . . . . . 3 1 Reactor . | . . . . . . . Propulsion 20 | 2 . 1 . 4 7 6 Treads . | . . . . . . . Leg 18 | 2 . 1 . 2 7 6 Wheel 2 | . . . . 2 . . Hover . | . . . . . . . Flight . | . . . . . . . Utility 20 | 1 . 3 . 1 8 7 Device 8 | . . 3 . 1 3 1 Storage 4 | 1 . . . . 2 1 Processor 2 | . . . . . 2 . Hackware 1 | . . . . . . 1 Protection 5 | . . . . . 1 4 Artifact . | . . . . . . . Weapon 37 | 2 . 3 . 6 7 19 Energy Gun 8 | . . 1 . 2 1 4 Energy Cannon 3 | . . . . . 2 1 Ballistic Gun 15 | 2 . . . . 3 10 Ballistic Cannon 2 | . . 1 . 1 . . Launcher 6 | . . 1 . 2 1 2 Special Weapon 2 | . . . . 1 . 1 Impact Weapon 1 | . . . . . . 1 Slashing Weapon . | . . . . . . . Piercing Weapon . | . . . . . . . Special Melee Weapon . | . . . . . . . Unidentified Prototypes 9 | . . 1 . . 1 7 Parts Lost 13 | . . . . 7 3 3 Power 2 | . . . . 1 1 . Propulsion 3 | . . . . 2 . 1 Utility 3 | . . . . 1 . 2 Weapon 5 | . . . . 3 2 . Highest Loss Streak 3 | . . . . 3 2 1 Average Slot Usage (%) 95 | . 85 96 100 93 86 98 Engine 9 | . 14 14 14 14 2 6 Core 2 | . . . . . 6 2 Leg 25 | . 28 28 28 25 22 25 Device 10 | . . 11 14 13 9 10 Storage 11 | . 14 14 14 14 13 9 Processor 9 | . . . . . 12 18 Protection 2 | . . . . . . 6 Energy Gun 6 | . . 8 14 6 1 6 Energy Cannon 1 | . . . . . 8 . Ballistic Gun 8 | . 28 15 . . 5 9 Ballistic Cannon 1 | . . . . 9 . . Launcher 3 | . . 3 14 7 . . Naked Turns . | . . . . . . . Heaviest Build 39 | 12 12 19 19 21 27 39 Greatest Support 35 | 20 20 20 20 20 30 35 Greatest Overweight (x) 2 | 1 . . . 2 2 1 Average Overweight (x) . | . . . . . . . Largest Inventory Capacity 10 | 6 6 6 6 6 10 10 Average Capacity 7 | 5 6 6 6 6 7 8 Most Carried 10 | 2 3 6 6 6 8 10 Average Carried 6 | 1 2 5 6 5 6 7 Final Capacity 10 | 6 6 6 6 6 8 10 Final Carried 9 | 2 3 6 6 6 7 9 Class Distribution -------------------- 48% | Mutant 23% | Scavenger-Skirmisher 9% | Commander-Skirmisher 9% | Commander-Mutant 7% | Scavenger-Mutant Dominant Class ---------------- Mutant | -10/Materials Mutant | -10/Mines Mutant | -10/Exiles Mutant | -9/Mines Scavenger-Mutant | -8/Materials Scavenger-Skirmisher | -8/Storage Resources | -11 -10 -10 -10 -9 -8 -8 ----------- Run | Scr Mat Min Exi Min Mat Sto Matter Collected 1703 | 216 . 166 . 280 421 620 Remotely . | . . . . . . . Salvage Created 2096 | . . 186 . 123 903 884 Parts 97 | . . 11 . 6 37 43 Haulers Intercepted 1 | . . . . . . 1 Recyclers Shooed . | . . . . . . . Parts Field Recycled . | . . . . . . . Retrieved Matter . | . . . . . . . Parts Self-Destructed . | . . . . . . . Prevented . | . . . . . . . Kills | -11 -10 -10 -10 -9 -8 -8 ------- Run | Scr Mat Min Exi Min Mat Sto Combat Hostiles Destroyed 46 | . . 5 . 10 17 14 Melee 1 | . . . . 1 . . Guns 24 | . . 5 . 2 5 12 Cannons 12 | . . . . 7 5 . AOE 8 | . . . . . 6 2 Classes Destroyed 11 | . . 3 . 1 4 3 Worker 2 | . . . . . . 2 Hauler 1 | . . . . . . 1 Recycler 2 | . . 1 . 1 . . Watcher 2 | . . . . . 1 1 Swarmer 6 | . . 3 . 1 . 2 Grunt 22 | . . 2 . 1 11 8 Brawler 1 | . . . . . 1 . Duelist 1 | . . . . . 1 . Protector 1 | . . . . . . 1 Sentry 10 | . . . . . 4 6 Assembled 8 | . . . . 8 . . Best Kill Streak 7 | . . 4 . 2 7 3 Combat Bots Only 7 | . . 4 . 2 7 2 Max Kills in Single Turn 3 | . . 1 . 1 2 3 Gunslinging . | . . . . . . . Exploded 2 | . . . . . 2 2 Melee 1 | . . . . 1 . . Uniques/NPCs Destroyed . | . . . . . . . Combat | -11 -10 -10 -10 -9 -8 -8 -------- Run | Scr Mat Min Exi Min Mat Sto Damage Taken 3542 | . . 206 . 839 1038 1459 Core 735 | . . 33 . 150 200 352 Absorbed by Shields 27 | . . . . 27 . . Core Remaining (%) 63 | 100 . . . 26 . . Volleys Fired 215 | . . 20 . 47 48 100 Largest 2 | . . 2 . 2 2 2 Hottest 165 | . . 83 . 165 150 128 Shots Fired 342 | . . 40 . 54 90 158 Gun 231 | . . 40 . 15 44 132 Cannon 78 | . . . . 36 42 . Launcher 13 | . . . . . 4 9 Special 20 | . . . . 3 . 17 Kinetic 200 | . . 20 . 36 41 103 Thermal 126 | . . 20 . 18 42 46 Explosive 7 | . . . . . . 7 Electromagnetic 9 | . . . . . 7 2 Robot Hit Streak 12 | . . 8 . 4 9 12 Robot Miss Streak 5 | . . 4 . 3 5 3 Penetration Max 1 | . . . . . 1 1 Secondary Targets 2 | . . 1 . . . 1 Max Gunslinging Chain 1 | . . 1 . . . 1 Shots Hit Robots 172 | . . 26 . 28 56 62 Core Hits 82 | . . 9 . 12 25 36 Critical Hits 4 | . . . . . 1 3 Critical Kills 1 | . . . . . . 1 Critical Parts Destroyed 3 | . . . . . 1 2 Melee Attacks 14 | . . . . . . 14 Impact 14 | . . . . . . 14 Slashing . | . . . . . . . Piercing . | . . . . . . . Sneak Attacks . | . . . . . . . Combat Hostiles . | . . . . . . . Follow-up Attacks . | . . . . . . . Damage Inflicted 4745 | . . 410 . 616 1839 1880 Guns 2677 | . . 407 . 137 780 1353 Cannons 1003 | . . . . 428 575 . Explosions 1008 | . . . . . 481 527 Melee . | . . . . . . . Ramming 9 | . . 3 . 3 3 . Kinetic 2324 | . . 133 . 428 728 1035 Thermal 1412 | . . 274 . 185 635 318 Explosive . | . . . . . . . Electromagnetic 1000 | . . . . . 473 527 Impact . | . . . . . . . Slashing . | . . . . . . . Piercing . | . . . . . . . Highest Corruption 5 | . . . . . 2 5 Average Corruption 2 | . . . . . 2 2 Corruption Purged . | . . . . . . . Effects 27 | . . . . . 4 23 Message Errors 13 | . . . . . 3 10 Heat Flow Errors 1 | . . . . . . 1 Energy Discharges 6 | . . . . . 1 5 Data Loss (minor) 4 | . . . . . . 4 Misfires 1 | . . . . . . 1 Targeting Errors 2 | . . . . . . 2 Overload Shots . | . . . . . . . Overflow Damage 34 | . . . . 25 9 . Projectiles 25 | . . . . 25 . . Explosions 9 | . . . . . 9 . Melee . | . . . . . . . Knockbacks 3 | . . . . 3 . . Impact . | . . . . . . . Kinetic 3 | . . . . 3 . . Secondary . | . . . . . . . Self-Inflicted Damage 65 | . . 1 . 1 1 62 Shots 4 | . . . . . . 4 Rammed 5 | . . 2 . 1 1 1 Targets Rammed 5 | . . 2 . 1 1 1 Kicked . | . . . . . . . Crushed . | . . . . . . . Highest Temperature 320 | . . 204 . 188 320 242 Average Temperature 57 | . . 79 . 38 97 39 Received Heat Transfer 770 | . . 36 . 122 378 234 Effects 4 | . . . . . 4 . Energy Bleed 4 | . . . . . 4 . Siege Activations . | . . . . . . . Robots Corrupted 1 | . . . . . 1 . Combat Hostiles 1 | . . . . . 1 . Parts Fried 4 | . . . . . 2 2 Impact Corruptions . | . . . . . . . Robots Melted . | . . . . . . . Combat Hostiles . | . . . . . . . Parts Melted . | . . . . . . . Heat Transferred 2605 | . . 592 . 433 951 629 Parts Sabotaged . | . . . . . . . Parts Stolen . | . . . . . . . Parts Stripped . | . . . . . . . Power Chain Reactions 1 | . . . . . 1 . Missiles Intercepted . | . . . . . . . Alert | -11 -10 -10 -10 -9 -8 -8 ------- Run | Scr Mat Min Exi Min Mat Sto Peak Influence 877 | . 45 155 . 40 466 877 Initial 196 | . . 17 . . . 196 Average 250 | . 17 49 . 17 276 446 Maximum Alert Level 3 | . . . . . 2 3 Low Security (%) 45 | 100 100 100 . 100 22 1 Level 1 32 | . . . . . 51 56 Level 2 15 | . . . . . 25 26 Level 3 6 | . . . . . . 15 Level 4 . | . . . . . . . Level 5 . | . . . . . . . High Security . | . . . . . . . Max Security . | . . . . . . . Squads Dispatched 11 | . 1 1 . . 3 6 Investigation 3 | . . 1 . . 1 1 Extermination . | . . . . . . . Reinforcement 5 | . 1 . . . 2 2 Assault 1 | . . . . . . 1 Garrison 2 | . . . . . . 2 Intercept . | . . . . . . . Construction Impeded 1 | . . . . . 1 . Haulers Reinforced . | . . . . . . . Stealth | -11 -10 -10 -10 -9 -8 -8 --------- Run | Scr Mat Min Exi Min Mat Sto Distress Signals 6 | . . . . . 3 3 Communications Jammed . | . . . . . . . Distress Signals . | . . . . . . . Times Spotted 103 | . 1 7 . 25 27 43 Peak Tracking Total 7 | . 1 3 . 4 6 7 Tactical Retreats 14 | . . 2 . 7 2 3 Traps | -11 -10 -10 -10 -9 -8 -8 ------- Run | Scr Mat Min Exi Min Mat Sto Traps Triggered 4 | . . 1 . . 1 2 Indirectly . | . . . . . . . Trap Hack Attempts . | . . . . . . . Triggered . | . . . . . . . Disarmed 1 | . . . . . . 1 Reprogrammed . | . . . . . . . Reused . | . . . . . . . Traps Extracted . | . . . . . . . Installed . | . . . . . . . Triggered 1 | . . . . 1 . . Machines | -11 -10 -10 -10 -9 -8 -8 ---------- Run | Scr Mat Min Exi Min Mat Sto Machines Disabled 16 | . . . . . 4 12 Max in Single Turn 2 | . . . . . 2 2 Machines Sabotaged . | . . . . . . . Garrisons Compromised . | . . . . . . . Overloaded Fab Kills . | . . . . . . . Fab Network Shutdowns . | . . . . . . . Hacking | -11 -10 -10 -10 -9 -8 -8 --------- Run | Scr Mat Min Exi Min Mat Sto Machines Accessed 22 | . 3 2 2 . 4 11 Terminals 14 | . 3 . . . 3 8 Fabricators . | . . . . . . . Repair Stations 3 | . . . . . 1 2 Recycling Units . | . . . . . . . Scanalyzers . | . . . . . . . Garrison Access 1 | . . . . . . 1 Total Hacks 53 | . 9 2 5 . 11 26 Successful 31 | . 3 2 5 . 6 15 Failed 22 | . 6 . . . 5 11 Catastrophic 3 | . 1 . . . . 2 Database Lockouts . | . . . . . . . Manual 3 | . . . . . . 3 Terminals 34 | . 9 . . . 8 17 Fabricators . | . . . . . . . Repair Stations 9 | . . . . . 3 6 Recycling Units . | . . . . . . . Scanalyzers . | . . . . . . . Garrison Access 3 | . . . . . . 3 Terminal Hacks 23 | . 3 2 5 . 4 9 Record 6 | . . . 5 . . 1 Part Schematic 2 | . . . . . . 2 Prototype ID Bank 1 | . . . . . 1 . Open Door 3 | . . 2 . . . 1 Level Access Points 1 | . 1 . . . . . Branch Access Points 1 | . . . . . 1 . Repair Station Index 1 | . . . . . . 1 Alert Level 1 | . . . . . . 1 Locate Traps 2 | . . . . . 1 1 Disarm Traps 1 | . . . . . . 1 Recall Investigation 1 | . . . . . . 1 Hauler Manifests 1 | . 1 . . . . . Registered Components 2 | . 1 . . . 1 . Fabricator Hacks . | . . . . . . . Repair Station Hacks 8 | . . . . . 2 6 Scan Component 4 | . . . . . 1 3 Repair 4 | . . . . . 1 3 Recycling Unit Hacks . | . . . . . . . Scanalyzer . | . . . . . . . Garrison Access Hacks . | . . . . . . . Unauthorized Hacks . | . . . . . . . Terminals . | . . . . . . . Fabricators . | . . . . . . . Repair Stations . | . . . . . . . Recycling Units . | . . . . . . . Scanalyzers . | . . . . . . . Garrison Access . | . . . . . . . Data Cores Recovered . | . . . . . . . Used . | . . . . . . . Hacking Detections 12 | . 1 . . . 3 8 Full Trace Events 1 | . . . . . . 1 Feedback Events . | . . . . . . . Feedback Blocked . | . . . . . . . Robot Schematics Acquired . | . . . . . . . Robots Built . | . . . . . . . Matter . | . . . . . . . Time . | . . . . . . . Total Robot Build Rating . | . . . . . . . Part Schematics Acquired 2 | . . . . . . 2 Parts Built . | . . . . . . . Matter . | . . . . . . . Time . | . . . . . . . Total Part Build Rating . | . . . . . . . Parts Repaired 4 | . . . . . 1 3 Time 188 | . . . . . 80 108 Parts Recycled . | . . . . . . . Recycled Matter . | . . . . . . . Retrieved Matter . | . . . . . . . Retrieved Components . | . . . . . . . Parts Scanalyzed . | . . . . . . . Part Schematics Acquired . | . . . . . . . Parts Damaged . | . . . . . . . Bothacking | -11 -10 -10 -10 -9 -8 -8 ------------ Run | Scr Mat Min Exi Min Mat Sto Used RIF Installer . | . . . . . . . Robots Hacked . | . . . . . . . Non-combat . | . . . . . . . Combat . | . . . . . . . Robot Hacks Applied . | . . . . . . . Relay Couplers Released . | . . . . . . . Robots Rewired . | . . . . . . . Allies Hacked . | . . . . . . . Hacks Repelled . | . . . . . . . Allies | -11 -10 -10 -10 -9 -8 -8 -------- Run | Scr Mat Min Exi Min Mat Sto Total Allies 11 | . . . . . . 11 Largest Group 10 | . . . . . . 10 Highest-Rated Group 224 | . . . . . . 224 Highest-Rated Ally 99 | . . . . . . 99 Total Orders 3 | . . . . . . 3 GUARD 1 | . . . . . . 1 EXPLORE 2 | . . . . . . 2 Ally Attacks 96 | . . . . . . 96 Total Damage 1470 | . . . . . . 1470 Kills 18 | . . . . . . 18 Allies Corrupted . | . . . . . . . Allies Melted . | . . . . . . . Intel | -11 -10 -10 -10 -9 -8 -8 ------- Run | Scr Mat Min Exi Min Mat Sto Robot Analysis Total . | . . . . . . . Derelict Logs Recovered 3 | . . 1 . 2 . . Drone Launches 3 | . . . . . . 3 Drone Recoveries 2 | . . . . . . 2 Exploration | -11 -10 -10 -10 -9 -8 -8 ------------- Run | Scr Mat Min Exi Min Mat Sto Turns Passed 5109 | 69 124 889 330 878 731 2088 Spaces Moved 3212 | 49 95 618 276 521 453 1200 Core 5 | 3 . . . 2 . . Treads . | . . . . . . . Legs 3081 | 46 95 618 276 506 340 1200 Wheels 126 | . . . . 13 113 . Hover . | . . . . . . . Flight . | . . . . . . . Fastest Speed 50 | 50 120 120 120 80 80 120 Average Speed 121 | 120 120 120 120 132 110 122 Slowest Speed 180 | 150 120 120 120 150 180 150 Overloaded Moves . | . . . . . . . Propulsion Burnouts . | . . . . . . . Robots Hopped . | . . . . . . . Cave-ins Triggered 2 | . . . . . . 2 Exploration Rate (%) 57 | 3 27 99 61 84 36 95 Regions Visited 6 Branch Regions 4 Pre-discovered Areas 2 | . . 1 . 1 . . Known Exits Taken 1 | . . . . . 1 . Unknown Exits Taken 5 | 1 1 1 1 1 . . Scrap Searched 4 | . . 2 . 2 . . Spaces Dug 58 | . . . . . . 58 Terrain Destroyed 91 | . . . . 13 19 59 Melee 1 | . . . . . . 1 Projectile 39 | . . . . 13 16 10 AOE 51 | . . . . . 3 48 Terrain Rammed . | . . . . . . . Walls Destroyed . | . . . . . . . Machines Disabled . | . . . . . . . Actions | -11 -10 -10 -10 -9 -8 -8 --------- Run | Scr Mat Min Exi Min Mat Sto Total 4004 | 56 105 727 275 643 587 1611 Wait 391 | . 10 68 . 55 39 219 Move 3206 | 48 94 617 275 520 452 1200 Hop . | . . . . . . . Pick Up 32 | 2 1 8 . 3 6 12 Fast Attach 41 | 6 . . . 4 17 14 Attach 9 | . . 3 . 1 2 3 Detach 5 | . . . . 1 1 3 Swap 38 | . . 4 . 7 8 19 Drop 47 | . . 5 . 4 13 25 Fire 215 | . . 20 . 47 48 100 Melee 14 | . . . . . . 14 Ram . | . . . . . . . Kick 5 | . . 2 . 1 1 1 Crush . | . . . . . . . Escape Stasis . | . . . . . . . Rewire 1 | . . . . . . 1 Trap . | . . . . . . . Miscellaneous . | . . . . . . . Route ------- -11/Scrapyard -10/Materials (discovered 4 exits: Mat x3 / *Min) -10/Mines (discovered 3 exits: *Mat x2 / *Exi) -10/Exiles -9/Mines -8/Materials (discovered 4 exits: *Fac x2 / *Sto x2) -8/Storage (discovered 1 exit: *Fac) History --------- Turn | Location | Event 28 | -11/Scrapyard | Discovered new exit (range 15) 70 | -11/Scrapyard | Entered Materials 112 | -10/Materials | Identified exit to Materials 156 | -10/Materials | Discovered new exit (range 6) 194 | -10/Materials | Entered Mines 252 | -10/Mines | Discovered exit to Materials (range 5) 318 | -10/Mines | Build established: Mutant 351 | -10/Mines | Found a damaged Exp. Sensor Array with a note attached 353 | -10/Mines | Found Prototype Device 367 | -10/Mines | Identified Exp. Sensor Array 481 | -10/Mines | Met a Derelict who couldn't figure out how to use a Trap Extractor 544 | -10/Mines | Discovered exit to Materials (range 10) 839 | -10/Mines | Met a Derelict shopkeep closing up shop 988 | -10/Mines | Learned location of Zion (-6) 1024 | -10/Mines | Deemed a non-threat by the Exiles lab entrance 1026 | -10/Mines | Discovered new exit (range 5) 1083 | -10/Mines | Entered Exiles 1112 | -10/Exiles | Met 8R-AWN 1133 | -10/Exiles | Met EX-HEX 1169 | -10/Exiles | Met EX-BIN 1291 | -10/Exiles | Met EX-DEC 1383 | -10/Exiles | Discovered new exit (range 14) 1413 | -10/Exiles | Entered Mines 1434 | -9/Mines | Assembled infested the area 1544 | -9/Mines | Discovered new exit (range 7) 2145 | -9/Mines | Core integrity fell below 50% 2199 | -9/Mines | Lost 3 parts (1p1n1w) 2291 | -9/Mines | Entered Materials 2291 | -8/Materials | Evolved 4 slots: Propulsion x1, Utility x3 2292 | -8/Materials | Identified exit to Factory 2439 | -8/Materials | Destroyed 7 combat bots 2748 | -8/Materials | Repaired Exp. Sensor Array 2866 | -8/Materials | Discovered new exit (range 9) 2998 | -8/Materials | Identified exit to Storage 3016 | -8/Materials | Discovered exit to Factory (range 18) 3022 | -8/Materials | Entered Storage 3066 | -8/Storage | Build established: Scavenger-Skirmisher 3367 | -8/Storage | Repaired Aluminum Leg 3475 | -8/Storage | Repaired Carbon-fiber Leg 3728 | -8/Storage | Garrison activated, responded to threat 3861 | -8/Storage | Core integrity fell below 50% 3926 | -8/Storage | Repaired Imp. Trap Extractor 3942 | -8/Storage | Assisted by bots powering up and referring to "LRC-V3" 4252 | -8/Storage | Build established: Commander-Skirmisher 4412 | -8/Storage | Discovered exit to Factory (range 7) 4447 | -8/Storage | Met 01-MTF 4563 | -8/Storage | Build established: Commander-Mutant 4936 | -8/Storage | Crushed by falling debris 4961 | -8/Storage | Crushed by falling debris 4961 | -8/Storage | Core integrity fell below 20% 5022 | -8/Storage | First assault squad dispatched 5036 | -8/Storage | Garrison activated, responded to threat 5110 | -8/Storage | Destroyed self via exploding Compression Vault Last Messages --------------- Lgt. Armor Plating destroyed. K-01 Serf collects debris. G-47 Trooper destroyed. R-06 Scavenger collects Aluminum Leg. K-01 Serf collects debris. Slug penetrates G-50 Soldier. Destroyed Hvy. Laser. Component Storage disabled. K-01 Serf collects debris. Y-45 Defender shuts down. Y-45 Defender destroyed. K-01 Serf collects debris. Dropped Adv. EMP Blaster. Acquired Mni. Grenade Launcher. K-01 Serf collects debris. System corrupted: Component data lost. K-01 Serf collects debris. The unstable cave ceiling collapses. Compression Vault explodes. [Achievement: Achiever] Map ----- +----------------------------------------------------+ | #####???????????#""" # #???? | | ????????????????#"T # #???? | | ????????????????#""" # #???? | | ????????????????# # #???? | | ???????????????## """"" # #???? | | ???????????????# [*""""" + #???? | | ???????????????##%! """" # #???? | | #???????????????#== # #???? | | #???????????????##""T""### #???? | | #????????????????#"""""#?# #???? | | #????????????????#######?###+####? | | #?????????????????????????## #? | | #?????????????????????????#T #? | | #????????????????????????###" "##? | | #????????????#####???????# !#? | | #????????????#! !#???????#!! #? | | #????????????#! !#?????### ! !!#? | | #????????????#! !#??#### #! ! !#? | | #????????????# !#??# ########? | | ##??###??????## ##### ###? | | ##### ######## T## #? | | # # ##+#### #? | | # + #? | | # # # | | # " " # ##### # ## | | # """ ######???# ### @ ####? | | + """ "" #?????# ### p ###???? | | #! "" G"#?????# "" #?????? | | #% " "" #?????# T #?????? | | #=% =%= ############+## #?????? | | #=%= [ #???# ## ##?????? | | =% #???# """" ## #??????? | | ######### "[ " ## #??????? | | #?# ! ## [[" ## #??????? | | = ] #?# ## "[=" # ##?????? | | = ### ! ## " =u T#?????? | | Yg [! ## ##?????? | | # # ] ## """"??????? | | ### ##+####+##### # ##?????????? | | # a #??? # #?????????? | | # #??# #?????????? | | "" # #?# #?????????? | | "" # #?## ## #?????????? | | # #???#? ##?????????? | | "" ############?????##??????????? | | "" #????????????????????????????? | | "" #????????????????????????????? | | ????????????????????????????? | | #####????????????????????????????? | | | +----------------------------------------------------+ Best States ------------- Heat Dissipation 41 Energy Generation 14 Energy Capacity 275 Matter Stores 450 Matter Capacity 450 Sight Range 18 Robot Scan Range 30 Terrain Scan Density 10 Armor Coverage 150 Evasion (%) 44 Offensive Hacking 10 Item Schematics ----------------- Imp. Medium Armor Plating | -8/Storage | Hacked Imp. Carbon-fiber Leg | -8/Storage | Hacked Robot Schematics ------------------ None Fabricated ------------ Nothing Alien Tech Used ----------------- None Achievements -------------- Achiever Fist Fight Part-time Excavator Challenges ------------ None Game ------ Seed NuclearTachyonThruster Manual? 0 Play Time 01:23:55 Cumulative 53.9 hours Start 2021.12.18 @ 21:35:39 End 2021.12.19 @ 12:24:46 Sessions 5 Manual Loads 0 Difficulty Rogue Special Mode None Game No. 16 Rogue 16 Adventurer 0 Explorer 0 Win Type - Total 0 Types 0/0/0/0/0/0/0/0/0 Lore% 31 Gallery% 38 Achievement% 25 Wizard Run 0 Options --------- ASCII 0 Keyboard 0 Movement Mouse Keybinds 0 Fullscreen 2 Font 18/SmallcapsGlow Map View 76x50 Tactical HUD 0 Map Filters NONE Filters NONE Steam 1 RUN: 8107abb2-42ca-480d-97e1-41272231f515